bitfinex/quotes_BTCUSD_20220303
["timestamp","ask_amount","ask_price","bid_price","bid_amount"]
[1646285244118,0.22153159,43436.0,43435.0,0.13118748]
[1646285244317,0.79349334,43436.0,43435.0,0.13118748]
[1646285244573,0.355466,43436.0,43435.0,0.13118748]
[1646285245567,0.356466,43436.0,43435.0,0.13118748]
[1646285246668,0.355466,43436.0,43435.0,0.13118748]
[1646285247468,0.356466,43436.0,43435.0,0.13118748]
[1646285249412,0.355466,43436.0,43435.0,0.13118748]
[1646285249615,0.356466,43436.0,43435.0,0.13118748]
[1646285250017,0.356466,43436.0,43435.0,0.33664729]
[1646285250018,0.001,43436.0,43435.0,0.33664729]
[1646285250216,0.001,43436.0,43435.0,0.38284729]
[1646285250417,0.001,43436.0,43435.0,0.40589729]
[1646285250814,0.03412645,43443.0,43437.0,0.02305]
[1646285251014,0.03412645,43443.0,43442.0,0.45709012]
[1646285251717,0.05,43450.0,43443.0,0.355466]
[1646285251969,0.41773629,43459.0,43447.0,0.1684024]
[1646285251970,0.0115,43458.0,43447.0,0.1684024]
[1646285252174,0.14537119,43458.0,43448.0,0.3]
[1646285252370,0.40888111,43460.0,43448.0,0.3]
[1646285252568,0.24283718,43455.0,43449.0,0.21902355]
[1646285252771,0.24283718,43455.0,43451.0,0.00016007]
[1646285252969,0.355466,43456.0,43451.0,0.00016007]
[1646285253370,0.1624,43456.0,43451.0,0.00016007]
[1646285253570,0.1624,43456.0,43451.0,0.00216007]
[1646285253771,0.1624,43456.0,43451.0,0.002]
[1646285254070,0.18011036,43457.0,43451.0,0.00216007]
[1646285254870,0.18011036,43457.0,43451.0,0.16514091]
[1646285255072,0.18011036,43457.0,43452.0,0.00016003]
[1646285255910,0.18011036,43457.0,43453.0,0.23284646]
[1646285256119,0.355466,43456.0,43453.0,0.23284646]
[1646285256311,0.18011036,43457.0,43453.0,0.23284646]
[1646285256511,0.355466,43456.0,43453.0,0.23284646]
[1646285256710,0.18011036,43457.0,43453.0,0.23284646]
[1646285256913,0.355466,43456.0,43453.0,0.23284646]
[1646285257612,0.355466,43456.0,43453.0,0.001]
[1646285258913,0.355466,43456.0,43452.0,0.00016543]
[1646285259572,0.357466,43456.0,43452.0,0.00016543]
[1646285259771,0.357466,43456.0,43447.0,0.001]
[1646285259975,0.002,43456.0,43452.0,0.00016544]
[1646285260172,0.355466,43455.0,43452.0,0.00016544]
[1646285260972,0.355466,43455.0,43445.0,0.35756753]
[1646285261172,0.18011036,43457.0,43451.0,0.00016544]
[1646285261374,0.355466,43456.0,43451.0,0.00016544]
[1646285262073,0.355466,43456.0,43445.0,0.36356753]
[1646285262272,0.18011036,43457.0,43451.0,0.00015924]
[1646285262478,0.355466,43456.0,43451.0,0.00015924]
[1646285263415,0.18011036,43457.0,43448.0,0.21769127]
[1646285263615,0.18011036,43457.0,43451.0,0.00215924]
[1646285263616,0.355466,43454.0,43451.0,0.00215924]
[1646285263816,0.27944869,43455.0,43451.0,0.00215924]
[1646285264014,0.18011036,43457.0,43451.0,0.00215924]
[1646285264215,0.355466,43456.0,43451.0,0.0020763]
[1646285264614,0.355466,43456.0,43451.0,0.00191706]
[1646285264916,0.355466,43456.0,43451.0,0.00015924]
[1646285265618,0.358466,43456.0,43451.0,0.00015924]
[1646285265820,0.003,43456.0,43450.0,0.1900841]
[1646285266019,0.003,43456.0,43451.0,0.00016015]
[1646285266218,0.355466,43455.0,43451.0,0.00016015]
[1646285266421,0.1624,43455.0,43451.0,0.00016015]
[1646285267064,0.1624,43455.0,43450.0,0.1900841]
[1646285267270,0.1624,43455.0,43451.0,0.00016015]
[1646285267463,0.1624,43455.0,43451.0,0.00116015]
[1646285268264,0.1624,43455.0,43451.0,0.001]
[1646285268463,0.1624,43455.0,43451.0,0.00116015]
[1646285268864,0.1624,43455.0,43451.0,0.00016015]
[1646285269166,0.44968111,43455.0,43451.0,0.00016015]
[1646285269365,0.44968111,43455.0,43449.0,0.28834926]
[1646285269564,0.28728111,43455.0,43451.0,0.00116002]
[1646285269764,0.355466,43454.0,43451.0,0.00116002]
[1646285269968,0.28728111,43455.0,43451.0,0.00116002]
[1646285270571,0.28728111,43455.0,43451.0,0.001]
[1646285270815,0.28728111,43454.0,43451.0,0.00016002]
[1646285271015,0.28728111,43456.0,43452.0,0.18886647]
[1646285271216,0.28728111,43456.0,43453.0,0.3]
[1646285272213,0.28728111,43457.0,43453.0,0.3]
[1646285272410,0.28728111,43457.0,43452.0,0.19102649]
[1646285272612,0.28728111,43456.0,43452.0,0.19102649]
[1646285272814,0.28728111,43456.0,43452.0,0.18902649]
[1646285273013,0.28728111,43456.0,43452.0,0.18886647]
[1646285273210,0.28728111,43456.0,43452.0,0.18901114]
[1646285273612,0.28828111,43456.0,43452.0,0.18901114]
[1646285274213,0.28828111,43456.0,43452.0,0.18886647]
[1646285274468,0.001,43456.0,43452.0,0.18901278]
[1646285274669,0.001,43456.0,43453.0,0.3]
[1646285274871,0.28728111,43457.0,43452.0,0.18901278]
[1646285275070,0.28728111,43457.0,43452.0,0.18401278]
[1646285275476,0.28728111,43457.0,43452.0,0.18386647]
[1646285275671,0.28928111,43457.0,43452.0,0.18401278]
[1646285276571,0.28928111,43457.0,43452.0,0.18386647]
[1646285276771,0.28928111,43457.0,43452.0,0.18401324]
[1646285276973,0.28728111,43457.0,43452.0,0.18401324]
[1646285277771,0.28728111,43457.0,43452.0,0.18386647]
[1646285277975,0.28728111,43457.0,43452.0,0.18401324]
[1646285278914,0.01,43458.0,43452.0,0.18386647]
[1646285278915,0.28728111,43456.0,43452.0,0.18386647]
[1646285279113,0.28728111,43456.0,43452.0,0.18401311]
[1646285280117,0.28728111,43454.0,43448.0,0.05756287]
[1646285280316,0.28728111,43454.0,43443.0,0.11513138]
[1646285280317,0.28728111,43451.0,43443.0,0.11513138]
[1646285280915,0.28728111,43451.0,43442.0,0.4993]
[1646285281120,0.15744978,43448.0,43444.0,0.28023028]
[1646285281318,0.15744978,43448.0,43440.0,0.0115]
[1646285281319,0.44473089,43448.0,43440.0,0.0115]
[1646285281520,0.44473089,43448.0,43444.0,0.00014659]
[1646285281716,0.355466,43447.0,43444.0,0.00014659]
[1646285282162,0.44473089,43448.0,43444.0,0.00014659]
[1646285282564,0.44473089,43448.0,43441.0,0.22334305]
[1646285282863,0.28728111,43447.0,43444.0,0.00014654]
[1646285283465,0.34487011,43447.0,43444.0,0.00014654]
[1646285283864,0.34487011,43447.0,43440.0,0.0115]
[1646285284064,0.34487011,43447.0,43444.0,0.000555]
[1646285284664,0.655466,43446.0,43444.0,0.000555]
[1646285285066,0.94274711,43446.0,43444.0,0.000555]
[1646285285465,0.057589,43447.0,43444.0,0.000555]
[1646285285466,0.74968111,43445.0,43444.0,0.000555]
[1646285285721,0.60814715,43445.0,43444.0,0.000555]
[1646285286119,0.4624,43445.0,43444.0,0.000555]
[1646285286320,0.66904014,43445.0,43444.0,0.000555]
[1646285286720,0.81478729,43445.0,43444.0,0.000555]
[1646285286920,0.66904014,43445.0,43444.0,0.000555]
[1646285287120,0.81478729,43445.0,43444.0,0.000555]
[1646285288222,0.66904014,43445.0,43444.0,0.001555]
[1646285288621,0.95641634,43445.0,43444.0,0.001555]
[1646285289021,0.81478729,43445.0,43444.0,0.000555]
[1646285289461,0.66904014,43445.0,43444.0,0.000555]
[1646285290064,0.81878729,43445.0,43444.0,0.000555]
[1646285290668,0.37304014,43445.0,43444.0,0.000555]
[1646285291368,0.36894413,43445.0,43444.0,0.000555]
[1646285291967,0.37394413,43445.0,43444.0,0.000555]
[1646285293211,0.36894413,43445.0,43444.0,0.000555]
[1646285296019,0.37494413,43445.0,43444.0,0.000555]
[1646285297066,0.71010542,43445.0,43444.0,0.000555]
[1646285297268,0.44521976,43445.0,43444.0,0.00037826]
[1646285297468,0.23857962,43445.0,43444.0,0.00037826]
[1646285298671,0.49759142,43445.0,43444.0,0.00037826]
[1646285298869,0.16230399,43445.0,43444.0,0.00037826]
[1646285300471,0.49759142,43445.0,43444.0,0.00037826]
[1646285300927,0.16230399,43445.0,43444.0,0.00037826]
[1646285301727,0.49759142,43445.0,43444.0,0.00037826]
[1646285301929,0.50359142,43445.0,43444.0,0.00037826]
[1646285302328,0.16830399,43445.0,43444.0,0.00037826]
[1646285303329,0.49759142,43445.0,43444.0,0.00037826]
[1646285303932,0.50359142,43445.0,43444.0,0.00037826]
[1646285307192,0.3268394,43445.0,43444.0,0.00027632]
[1646285307392,0.3730394,43445.0,43444.0,0.00027632]
[1646285307793,0.56817014,43445.0,43444.0,0.00027632]
[1646285307991,0.57117014,43445.0,43444.0,0.00027632]
[1646285309017,0.3760394,43445.0,43444.0,0.00027632]
[1646285309223,0.3730394,43445.0,43444.0,0.00027632]
[1646285309818,0.2730394,43445.0,43444.0,0.00027632]
[1646285310021,0.2760394,43445.0,43444.0,0.00027632]
[1646285310219,0.3760394,43445.0,43444.0,0.00027632]
[1646285310519,0.58619399,43445.0,43444.0,0.00027632]
[1646285310720,0.3760394,43445.0,43444.0,0.00027632]
[1646285311620,0.53293433,43445.0,43444.0,0.00027632]
[1646285311969,0.53693433,43445.0,43444.0,0.00027632]
[1646285312367,0.3800394,43445.0,43444.0,0.00027632]
[1646285313068,0.2338394,43445.0,43444.0,0.00027632]
[1646285313270,0.16230399,43445.0,43444.0,0.00027632]
[1646285313470,0.49755965,43445.0,43444.0,0.00027632]
[1646285313670,0.16230399,43445.0,43444.0,0.00027632]
[1646285315922,0.36230399,43445.0,43444.0,0.00027632]
[1646285316122,0.36830399,43445.0,43444.0,0.00027632]
[1646285316325,0.70355965,43445.0,43444.0,0.00027632]
[1646285317126,0.36830399,43445.0,43444.0,0.00027632]
[1646285317326,0.36230399,43445.0,43444.0,0.00027632]
[1646285317625,0.69755965,43445.0,43444.0,0.00027632]
[1646285319765,0.40836726,43445.0,43444.0,0.00027632]
[1646285322063,0.41436726,43445.0,43444.0,0.00027632]
[1646285322463,0.41436726,43445.0,43444.0,0.00021632]
[1646285323310,0.71436726,43445.0,43444.0,0.00021632]
[1646285324114,0.72036726,43445.0,43444.0,0.00021632]
[1646285325215,0.40836726,43445.0,43444.0,0.00021632]
[1646285326013,0.41536726,43445.0,43444.0,0.00021632]
[1646285327377,0.40836726,43445.0,43444.0,0.00021632]
[1646285327778,0.70836726,43445.0,43444.0,0.00021632]
[1646285327977,0.77295826,43445.0,43444.0,0.00021632]
[1646285329381,0.76595826,43445.0,43444.0,0.00021632]
[1646285329580,0.86595826,43445.0,43444.0,0.00021632]
[1646285330082,1.01175463,43445.0,43444.0,0.00021632]
[1646285331817,1.39449274,43445.0,43444.0,0.00021632]
[1646285332420,1.39449274,43445.0,43444.0,6.32e-06]
[1646285332630,1.39449274,43445.0,43431.0,0.00084457]
[1646285332631,0.02305,43443.0,43431.0,0.00084457]
[1646285332822,0.02305,43439.0,43431.0,0.00084457]
[1646285333021,0.29285433,43437.0,43431.0,0.00025981]
[1646285333219,0.70146527,43436.0,43431.0,0.00025981]
[1646285333421,0.94583953,43436.0,43431.0,0.00025981]
[1646285333624,1.0916359,43436.0,43431.0,0.00025981]
[1646285334474,0.7916359,43436.0,43431.0,0.00025981]
[1646285334674,1.0916359,43436.0,43431.0,0.00025981]
[1646285335778,1.0916359,43436.0,43433.0,0.00015643]
[1646285336376,0.7946359,43436.0,43433.0,0.00015643]
[1646285336775,0.7946359,43436.0,43431.0,0.00025981]
[1646285336975,0.7946359,43436.0,43433.0,0.00015643]
[1646285336976,1.06526577,43436.0,43433.0,0.00015643]
[1646285337177,0.7946359,43436.0,43433.0,0.00015643]
[1646285337581,0.7916359,43436.0,43433.0,0.00015643]
[1646285337977,0.7916359,43436.0,43431.0,0.00025981]
[1646285338209,0.7916359,43436.0,43433.0,0.00015609]
[1646285338210,0.33551393,43434.0,43433.0,0.00015609]
[1646285338512,0.49789193,43434.0,43433.0,0.00015609]
[1646285339111,0.49789193,43434.0,43431.0,0.00025981]
[1646285339312,0.49789193,43434.0,43431.0,0.0004159]
[1646285339313,0.28757432,43432.0,43431.0,0.0004159]
[1646285339511,0.44995232,43432.0,43431.0,0.0004159]
[1646285340218,0.162378,43432.0,43431.0,0.00025981]
[1646285340417,0.44994218,43432.0,43431.0,0.00025981]
[1646285340812,0.162378,43432.0,43431.0,0.00025981]
[1646285341212,0.44994218,43432.0,43431.0,0.00025981]
[1646285341412,0.162378,43432.0,43431.0,0.00025981]
[1646285343187,0.172378,43432.0,43431.0,0.00025981]
[1646285344587,0.40228278,43432.0,43431.0,0.00025981]
[1646285345388,0.54228278,43432.0,43431.0,0.00025981]
[1646285345595,0.49836402,43432.0,43431.0,0.00025981]
[1646285345820,0.64416039,43432.0,43431.0,0.00025981]
[1646285346118,0.50236402,43432.0,43431.0,0.00025981]
[1646285346518,0.33006924,43432.0,43431.0,0.00025981]
[1646285346724,0.27245924,43432.0,43431.0,0.00025981]
[1646285347321,0.55402424,43432.0,43431.0,0.00025981]
[1646285347521,0.24785175,43432.0,43431.0,0.00025981]
[1646285348126,0.25185175,43432.0,43431.0,0.00025981]
[1646285348521,0.55801614,43432.0,43431.0,0.00025981]
[1646285349479,0.55401614,43432.0,43431.0,0.00025981]
[1646285352186,0.55801614,43432.0,43431.0,0.00025981]
[1646285352387,0.25715395,43432.0,43431.0,0.00025981]
[1646285352988,0.55799207,43432.0,43431.0,0.00025981]
[1646285353425,0.55399207,43432.0,43431.0,0.00025981]
[1646285353823,0.35321594,43432.0,43431.0,0.00025981]
[1646285354121,0.322578,43432.0,43431.0,0.00025981]
[1646285356023,0.60777012,43432.0,43431.0,0.00025981]
[1646285356623,0.272378,43432.0,43431.0,0.00025981]
[1646285357178,0.272378,43432.0,43431.0,0.0001705]
[1646285358480,0.172378,43432.0,43431.0,0.0001705]
[1646285360081,0.176378,43432.0,43431.0,0.0001705]
[1646285360280,0.4626192,43432.0,43431.0,0.0001705]
[1646285360481,0.176378,43432.0,43431.0,0.0001705]
[1646285361333,0.172378,43432.0,43431.0,0.0001705]
[1646285362225,0.176378,43432.0,43431.0,0.0001705]
[1646285362723,0.44480886,43432.0,43431.0,0.0001705]
[1646285363122,0.69060523,43432.0,43431.0,0.0001705]
[1646285363323,0.54080886,43432.0,43431.0,0.0001705]
[1646285363524,0.68660523,43432.0,43431.0,0.0001705]
[1646285363725,0.54080886,43432.0,43431.0,0.0001705]
[1646285364028,0.68660523,43432.0,43431.0,0.0001705]
[1646285364225,0.54080886,43432.0,43431.0,0.0001705]
[1646285364674,0.68660523,43432.0,43431.0,0.0001705]
[1646285365272,0.41817437,43432.0,43431.0,0.0001705]
[1646285365675,0.272378,43432.0,43431.0,0.0001705]
[1646285365873,0.60777012,43432.0,43431.0,0.0001705]
[1646285366074,0.61077012,43432.0,43431.0,0.0001705]
[1646285366474,0.52775545,43432.0,43431.0,0.0001705]
[1646285366873,1.00894394,43432.0,43431.0,0.0001705]
[1646285367173,0.2992718,43432.0,43431.0,0.0001705]
[1646285367373,0.2962718,43432.0,43431.0,0.0001705]
[1646285367574,0.1962718,43432.0,43431.0,0.0001705]
[1646285368075,0.46641909,43432.0,43431.0,0.0001705]
[1646285368318,0.56641909,43432.0,43431.0,0.0001705]
[1646285368918,0.62403509,43432.0,43431.0,0.0001705]
[1646285369519,0.62403509,43432.0,43431.0,0.0001105]
[1646285370219,0.62703509,43432.0,43431.0,0.0001105]
[1646285371419,0.60007664,43432.0,43431.0,0.0001105]
[1646285372185,0.64627664,43432.0,43431.0,0.0001105]
[1646285374184,0.64927664,43432.0,43431.0,0.0001105]
[1646285374587,0.32151335,43432.0,43431.0,0.0001105]
[1646285374786,0.17531335,43432.0,43431.0,0.0001105]
[1646285375084,0.27531335,43432.0,43431.0,0.0001105]
[1646285375287,0.17531335,43432.0,43431.0,0.0001105]
[1646285375488,0.17231335,43432.0,43431.0,0.0001105]
[1646285376529,0.1990017,43432.0,43431.0,0.0001105]
[1646285378032,0.03668835,43432.0,43431.0,0.0001105]
[1646285378233,0.01,43432.0,43431.0,0.3001105]
[1646285378832,0.01,43432.0,43431.0,0.54973103]
[1646285379675,0.14720348,43436.0,43431.0,0.54973103]
[1646285379871,0.355474,43435.0,43431.0,0.54973103]
[1646285380075,0.355474,43435.0,43431.0,0.24973103]
[1646285380277,0.003,43432.0,43431.0,0.24973103]
[1646285381177,0.003,43432.0,43431.0,0.54973103]
[1646285381407,0.003,43432.0,43431.0,0.92825503]
[1646285381574,0.14579637,43442.0,43434.0,0.05290635]
[1646285381774,0.6335216,43445.0,43436.0,0.057583]
[1646285382074,0.6335216,43445.0,43440.0,0.28164394]
[1646285382075,0.16143035,43443.0,43440.0,0.28164394]
[1646285382879,0.355474,43444.0,43440.0,0.28164394]
[1646285383226,0.34579637,43445.0,43440.0,0.28164394]
[1646285383430,0.2,43445.0,43441.0,0.057583]
[1646285383728,0.2,43445.0,43440.0,0.28178968]
[1646285384226,0.203,43445.0,43440.0,0.28178968]
[1646285384828,0.203,43445.0,43440.0,0.28164394]
[1646285385026,0.203,43445.0,43440.0,0.28178968]
[1646285385226,0.203,43445.0,43440.0,0.33937368]
[1646285385427,0.2,43445.0,43442.0,0.15567739]
[1646285386229,0.2,43445.0,43442.0,0.15667739]
[1646285386627,0.2,43445.0,43442.0,0.21425239]
[1646285386826,0.2,43445.0,43443.0,0.11514771]
[1646285387886,0.2,43445.0,43444.0,0.3]
[1646285388581,0.2,43445.0,43443.0,0.002]
[1646285389984,0.2,43445.0,43441.0,0.115154]
[1646285390182,0.203,43445.0,43441.0,0.115154]
[1646285390583,0.203,43445.0,43441.0,0.415154]
[1646285391423,0.2,43445.0,43441.0,0.415154]
[1646285392221,0.2,43445.0,43441.0,0.418154]
[1646285393420,0.2,43445.0,43441.0,0.415154]
[1646285394884,0.2,43445.0,43442.0,0.355474]
[1646285395188,0.2,43445.0,43444.0,0.355474]
[1646285395386,0.2,43445.0,43444.0,0.655474]
[1646285396186,0.2,43445.0,43444.0,0.659474]
[1646285397491,0.2,43445.0,43444.0,0.655474]
[1646285398232,10.0,43450.0,43449.0,0.16389866]
[1646285398433,10.0,43450.0,43449.0,0.81937266]
[1646285398632,10.0,43450.0,43449.0,1.03769798]
[1646285398833,10.0,43450.0,43449.0,0.73769798]
[1646285399031,10.0,43450.0,43449.0,0.51937266]
[1646285399931,10.0,43450.0,43449.0,0.16389866]
[1646285400335,10.0,43450.0,43448.0,0.057558]
[1646285400534,10.0,43450.0,43447.0,0.115116]
[1646285401332,10.17363232,43450.0,43447.0,0.115116]
[1646285401535,10.17363232,43450.0,43445.0,0.355474]
[1646285402173,10.17363232,43450.0,43444.0,0.37904191]
[1646285402377,10.17363232,43450.0,43446.0,0.05756774]
[1646285402573,10.17363232,43450.0,43444.0,0.37904191]
[1646285403073,10.17363232,43450.0,43445.0,0.355474]
[1646285403274,10.17363232,43450.0,43444.0,0.32147191]
[1646285403475,10.17363232,43450.0,43446.0,0.355385]
[1646285403675,10.17363232,43450.0,43445.0,0.355385]
[1646285403876,10.17363232,43450.0,43444.0,0.32147191]
[1646285404077,0.17363232,43450.0,43444.0,0.32147191]
[1646285404276,0.17363232,43450.0,43445.0,0.355385]
[1646285404475,0.17363232,43450.0,43444.0,0.27527191]
[1646285404676,0.17363232,43450.0,43445.0,0.355385]
[1646285404875,0.17363232,43450.0,43444.0,0.27527191]
[1646285405275,0.31131924,43455.0,43444.0,0.27527191]
[1646285405478,0.05,43455.0,43444.0,0.27527191]
[1646285405728,0.12838824,43459.0,43444.0,0.27527191]
[1646285406329,0.18743812,43455.0,43444.0,0.27527191]
[1646285407128,0.18743812,43455.0,43444.0,0.26899434]
[1646285408332,0.18743812,43455.0,43449.0,0.003]
[1646285409330,0.18743812,43455.0,43452.0,0.04348162]
[1646285409581,0.355385,43454.0,43452.0,0.04348162]
[1646285410586,0.357385,43454.0,43452.0,0.04348162]
[1646285411684,0.355385,43454.0,43452.0,0.04348162]
[1646285412083,0.401585,43454.0,43452.0,0.04348162]
[1646285412384,0.401585,43454.0,43452.0,0.02476469]
[1646285412684,0.46517,43454.0,43452.0,0.02476469]
[1646285413731,0.45917,43454.0,43452.0,0.02476469]
[1646285414130,0.401585,43454.0,43452.0,0.02476469]
[1646285414332,0.401585,43454.0,43447.0,0.26875721]
[1646285414831,0.16009091,43453.0,43450.0,0.02476469]
[1646285415030,0.172333,43452.0,43450.0,0.02476469]
[1646285419682,0.172333,43452.0,43444.0,0.1128]
[1646285419981,0.172333,43452.0,43448.0,0.02476469]
[1646285420579,0.25088946,43449.0,43448.0,0.02476469]
[1646285420836,0.60627446,43449.0,43448.0,0.02476469]
[1646285422336,0.355385,43449.0,43448.0,0.02476469]
[1646285424585,0.358385,43449.0,43448.0,0.00574615]
[1646285424988,0.358385,43449.0,43441.0,0.115144]
[1646285425186,0.003,43449.0,43446.0,0.00574615]
[1646285425388,0.355385,43448.0,43446.0,0.00574615]
[1646285426486,0.7429066,43448.0,43446.0,0.00574615]
[1646285427892,0.7389066,43448.0,43446.0,0.00574615]
[1646285428090,0.7619566,43448.0,43446.0,0.00574615]
[1646285428341,0.5558546,43447.0,43446.0,0.00574615]
[1646285429344,0.272333,43447.0,43446.0,0.00574615]
[1646285430347,0.383533,43447.0,43446.0,0.00574615]
[1646285430545,0.286533,43447.0,43446.0,0.00574615]
[1646285430747,0.386533,43447.0,43446.0,0.00574615]
[1646285431045,0.386533,43447.0,43440.0,0.00014625]
[1646285431046,0.02305,43446.0,43440.0,0.00014625]
[1646285431343,0.172333,43442.0,43440.0,0.00014625]
[1646285431547,0.218533,43442.0,43432.0,0.1806]
[1646285431745,0.72502077,43442.0,43440.0,0.00014624]
[1646285431979,0.52343777,43441.0,43440.0,0.00014624]
[1646285432180,1.17245207,43441.0,43440.0,0.00014624]
[1646285432383,1.27245207,43441.0,43440.0,0.00014624]
[1646285432783,0.02305,43440.0,43431.0,0.0001105]
[1646285433080,0.02305,43440.0,43431.0,0.00031133]
[1646285433081,0.16176028,43433.0,43431.0,0.00031133]
[1646285433282,0.355385,43432.0,43431.0,0.00031133]
[1646285433982,0.355385,43432.0,43431.0,0.0001105]
[1646285434583,0.355385,43432.0,43431.0,0.0011105]
[1646285435952,0.655385,43432.0,43431.0,0.0001105]
[1646285436354,0.96820436,43432.0,43431.0,0.00450794]
[1646285436559,0.67220436,43432.0,43431.0,0.00450794]
[1646285438555,0.97220436,43432.0,43431.0,0.00450794]
[1646285439482,0.67220436,43432.0,43431.0,0.00450794]
[1646285439884,0.66820436,43432.0,43431.0,0.00450794]
[1646285440484,0.67220436,43432.0,43431.0,0.00450794]
[1646285440684,0.97220436,43432.0,43431.0,0.00450794]
[1646285441285,0.67220436,43432.0,43431.0,0.00450794]
[1646285441888,0.66820436,43432.0,43431.0,0.00450794]
[1646285442486,0.67220436,43432.0,43431.0,0.00450794]
[1646285442887,0.97220436,43432.0,43431.0,0.00450794]
[1646285443932,0.96820436,43432.0,43431.0,0.00450794]
[1646285445033,0.66820436,43432.0,43431.0,0.00450794]
[1646285445432,0.96820436,43432.0,43431.0,0.00450794]
[1646285445833,0.701585,43432.0,43431.0,0.00450794]
[1646285446033,0.401585,43432.0,43431.0,0.00450794]
[1646285446977,0.701585,43432.0,43431.0,0.00450794]
[1646285447179,0.63978737,43432.0,43431.0,0.00450794]
[1646285448378,0.93978737,43432.0,43431.0,0.00450794]
[1646285449078,0.63978737,43432.0,43431.0,0.00450794]
[1646285449282,0.401585,43432.0,43431.0,0.00450794]
[1646285449478,0.355385,43432.0,43431.0,0.00450794]
[1646285453744,0.655385,43432.0,43431.0,0.00450794]
[1646285454146,0.712998,43432.0,43431.0,0.00450794]
[1646285454996,0.655385,43432.0,43431.0,0.00450794]
[1646285455195,0.658385,43432.0,43431.0,0.00450794]
[1646285455598,0.658385,43432.0,43431.0,0.00439091]
[1646285455798,0.658385,43432.0,43429.0,0.00237041]
[1646285455997,0.658385,43432.0,43430.0,0.00439091]
[1646285456197,0.3,43431.0,43430.0,0.00439091]
[1646285456398,0.472333,43431.0,43430.0,0.00439091]
[1646285458655,0.477333,43431.0,43430.0,0.00439091]
[1646285459858,0.472333,43431.0,43430.0,0.00439091]
[1646285462182,0.572333,43431.0,43430.0,0.00439091]
[1646285465190,0.272333,43431.0,43430.0,0.00439091]
[1646285465587,0.172333,43431.0,43430.0,0.00439091]
[1646285466041,0.472333,43431.0,43430.0,0.00439091]
[1646285466244,0.572333,43431.0,43430.0,0.00439091]
[1646285466644,0.64548817,43431.0,43430.0,0.00362182]
[1646285466842,0.64548817,43431.0,43429.0,0.0022]
[1646285467042,0.77934017,43430.0,43429.0,0.0022]
[1646285468141,0.82554017,43430.0,43429.0,0.0022]
[1646285468543,0.82854017,43430.0,43429.0,0.0022]
[1646285469786,0.86240539,43430.0,43429.0,0.0022]
[1646285470092,0.85940539,43430.0,43429.0,0.0022]
[1646285470489,0.991523,43430.0,43429.0,0.0022]
[1646285470686,0.86240539,43430.0,43429.0,0.0022]
[1646285470887,0.994523,43430.0,43429.0,0.0022]
[1646285471089,1.79853266,43430.0,43429.0,0.0022]
[1646285471291,1.93065027,43430.0,43429.0,0.0022]
[1646285471689,1.9066951,43430.0,43429.0,0.0022]
[1646285472090,2.00810797,43430.0,43429.0,0.0022]
[1646285472289,0.02305,43427.0,43421.0,0.00090635]
[1646285472491,0.02305,43424.0,43421.0,0.00026809]
[1646285472688,0.241583,43423.0,43421.0,0.00026809]
[1646285473091,0.82796,43422.0,43421.0,0.00026809]
[1646285473359,1.17749812,43422.0,43421.0,0.00026809]
[1646285473558,1.00492312,43422.0,43421.0,0.00026809]
[1646285473958,1.06255312,43422.0,43421.0,0.00026809]
[1646285474560,1.16255312,43422.0,43421.0,0.00026809]
[1646285475761,1.37503153,43422.0,43421.0,0.00026809]
[1646285476758,1.1905247,43422.0,43421.0,0.00026809]
[1646285477185,1.1905247,43422.0,43421.0,0.00020809]
[1646285477389,1.1905247,43422.0,43421.0,0.00382991]
[1646285477584,1.3694051,43422.0,43421.0,0.00382991]
[1646285477785,0.95,43421.0,43419.0,0.00347034]
[1646285477988,0.436074,43418.0,43408.0,0.0033]
[1646285478188,0.35866689,43414.0,43408.0,0.0033]
[1646285478391,0.50794989,43410.0,43408.0,0.0033]
[1646285478588,0.31417495,43410.0,43408.0,0.0033]
[1646285478788,0.41417495,43410.0,43408.0,0.0033]
[1646285478987,0.55417495,43410.0,43408.0,0.0033]
[1646285479390,0.41417495,43410.0,43408.0,0.0033]
[1646285479987,0.41417495,43410.0,43406.0,0.0022]
[1646285479988,0.355385,43408.0,43406.0,0.0022]
[1646285480189,0.801585,43408.0,43406.0,0.0022]
[1646285480390,0.9495088,43408.0,43406.0,0.0022]
[1646285480590,1.0935088,43408.0,43406.0,0.0022]
[1646285480841,1.25045847,43408.0,43406.0,0.0022]
[1646285481042,1.0935088,43408.0,43406.0,0.0022]
[1646285481639,1.122333,43407.0,43406.0,0.0011]
[1646285481839,1.568533,43407.0,43406.0,0.0011]
[1646285482039,1.7164568,43407.0,43406.0,0.0011]
[1646285482439,1.9873867,43407.0,43406.0,0.0011]
[1646285482638,2.263336,43407.0,43406.0,0.0011]
[1646285483239,1.963336,43407.0,43406.0,0.0011]
[1646285484044,1.958336,43407.0,43406.0,0.0011]
[1646285484694,1.963336,43407.0,43406.0,0.0011]
[1646285485290,1.883231,43407.0,43406.0,0.0011]
[1646285485991,1.005385,43406.0,43404.0,0.00126662]
[1646285486193,0.3462,43405.0,43404.0,0.00126662]
[1646285486392,0.6664568,43405.0,43404.0,0.00126662]
[1646285486794,0.6664568,43405.0,43404.0,0.0011]
[1646285487192,1.328435,43404.0,43401.0,0.0011]
[1646285487397,0.06925,43403.0,43401.0,0.0011]
[1646285487595,0.172333,43402.0,43401.0,0.0011]
[1646285487794,0.318533,43402.0,43401.0,0.0011]
[1646285488232,0.7948382,43402.0,43401.0,0.0011]
[1646285488439,1.305385,43401.0,43400.0,0.0003]
[1646285488636,1.122333,43400.0,43398.0,0.0011]
[1646285488840,0.401585,43399.0,43398.0,0.0011]
[1646285489034,0.5495088,43399.0,43398.0,0.0011]
[1646285489233,0.6495088,43399.0,43398.0,0.0011]
[1646285489434,0.801585,43399.0,43398.0,0.0011]
[1646285489833,0.95518271,43399.0,43398.0,0.0011]
[1646285490135,0.801585,43399.0,43398.0,0.0011]
[1646285490335,1.21763813,43399.0,43398.0,0.0011]
[1646285490534,0.057666,43395.0,43384.0,0.66212817]
[1646285490735,0.23250641,43392.0,43390.0,0.00019429]
[1646285490936,0.02305,43397.0,43390.0,0.00019429]
[1646285490937,0.218533,43391.0,43390.0,0.00019429]
[1646285491534,0.218533,43391.0,43387.0,0.21628601]
[1646285491737,0.218533,43391.0,43388.0,0.00015907]
[1646285492794,0.218533,43391.0,43387.0,0.21628601]
[1646285492993,0.218533,43391.0,43387.0,0.21644934]
[1646285493999,0.218533,43391.0,43387.0,0.21628601]
[1646285494195,0.218533,43391.0,43387.0,0.21644934]
[1646285494398,0.22508364,43388.0,43387.0,0.21644934]
[1646285494598,0.95,43387.0,43383.0,0.0011]